bitfinex-derivatives/quotes_SOLF0:USTF0_20250924
["timestamp","ask_amount","ask_price","bid_price","bid_amount"]
[1758682280441,149.03191746,214.48,214.29,7.72]
[1758682280644,1.16643102,214.47,214.29,7.72]
[1758682280847,149.40643102,214.46,214.29,7.72]
[1758682281142,149.32643102,214.45,214.31,65.298]
[1758682281338,0.81191746,214.48,214.36,65.2846]
[1758682281541,0.81191746,214.48,214.35,7.72]
[1758682281542,0.81191746,214.48,214.41,4.1958]
[1758682281955,0.81191746,214.48,214.35,7.72]
[1758682282153,149.2664171,214.47,214.26,7.72]
[1758682282448,65.2672,214.42,214.26,7.72]
[1758682282645,153.3824171,214.41,214.26,7.72]
[1758682282952,65.2786,214.38,214.15,7.72]
[1758682283243,136.5864171,214.37,214.17,7.72]
[1758682283449,66.4512171,214.36,214.17,7.72]
[1758682283655,1.1664171,214.35,214.17,7.72]
[1758682283848,147.88,214.34,214.17,7.72]
[1758682284038,65.3001,214.31,214.17,7.72]
[1758682284246,1.16740184,214.3,214.17,7.72]
[1758682284445,65.3099,214.28,214.17,7.72]
[1758682284748,65.286,214.36,214.1,7.11]
[1758682284938,65.297,214.32,214.12,4.2014]
[1758682285143,1.16752492,214.31,214.13,7.11]
[1758682285456,65.27,214.41,214.19,65.3359]
[1758682285745,65.2907,214.34,214.2,7.11]
[1758682285950,65.3518,214.14,214.09,7.11]
[1758682286145,65.3623,214.11,214.01,8.53998032]
[1758682286341,65.3728,214.07,214.0,8.53998032]
[1758682286545,65.3666,214.09,214.0,8.53998032]
[1758682286745,65.3388,214.19,213.94,8.53998032]
[1758682286950,65.3143,214.27,214.03,65.3844]
[1758682287146,1.16776554,214.26,214.09,4.202]
[1758682287346,108.26,214.26,214.07,65.3722]
[1758682287749,108.26,214.26,214.11,4.2016]
[1758682287948,1.16756839,214.25,214.03,65.3836]
[1758682288150,148.80756839,214.24,214.05,7.11]
[1758682288345,1.16756839,214.23,214.07,65.3719]
[1758682288541,96.46,214.23,214.07,65.3719]
[1758682288743,8.53998032,214.32,214.14,65.3509]
[1758682288946,1.16769485,214.31,214.07,65.3725]
[1758682289147,148.88769485,214.3,214.08,65.3695]
[1758682289457,1.16769485,214.29,214.05,72.4882]
[1758682289649,65.3309,214.21,214.05,7.11]
[1758682289845,147.62,214.2,214.06,65.3753]
[1758682290044,65.2915,214.34,214.06,65.3753]
[1758682290045,5.12320068,214.37,214.09,65.3651]
[1758682290247,65.2877,214.35,214.1,7.11]
[1758682290452,69.4947,214.32,214.1,7.11]
[1758682290656,66.46834115,214.31,214.1,7.11]
[1758682290854,70.40270068,214.38,214.13,65.3539]
[1758682290855,148.88754115,214.3,214.13,65.3539]
[1758682291054,1.16754115,214.29,214.1,7.11]
[1758682291257,1.16754115,214.28,214.15,65.3481]
[1758682291459,79.44,214.28,214.15,65.3481]
[1758682291757,147.46,214.28,214.19,65.3361]
[1758682291958,352.98,214.36,214.12,7.11]
[1758682291959,147.38,214.27,214.12,7.11]
[1758682292156,148.54755006,214.26,214.12,7.11]
[1758682292352,66.48595006,214.25,214.03,7.11]
[1758682292552,1.16755006,214.24,214.03,7.11]
[1758682292760,69.5234,214.23,214.03,11.3132]
[1758682293066,147.38,214.22,214.03,11.3132]
[1758682293362,4.1997,214.22,214.03,11.3132]
[1758682293662,146.02,214.21,214.03,11.3132]
[1758682293956,65.3275,214.22,214.03,7.11]
[1758682294156,65.334,214.2,214.03,7.11]
[1758682294349,65.3275,214.22,214.03,7.11]
[1758682294550,147.04,214.21,214.03,7.11]
[1758682294753,4.2,214.2,214.03,11.3132]
[1758682294953,4.2,214.2,214.03,7.11]
[1758682294954,146.96,214.19,214.03,7.11]
[1758682295151,146.96,214.19,213.91,65.4189]
[1758682295152,353.02,214.18,213.96,7.11]
[1758682295357,65.3585,214.12,213.96,7.11]
[1758682295665,65.3672,214.09,213.96,7.11]
[1758682295866,65.3854,214.03,213.84,7.11]
[1758682296164,146.9,214.11,213.84,7.11]
[1758682296165,65.3663,214.1,213.85,65.4395]
[1758682296358,65.4004,213.98,213.86,7.11]
[1758682296551,65.3941,214.0,213.86,7.11]
[1758682296552,146.96,214.0,213.86,7.11]
[1758682296751,146.96,214.01,213.86,7.11]
[1758682296963,65.3708,214.08,213.86,7.11]
[1758682297259,146.82,214.07,213.87,65.4335]
[1758682297458,65.3668,214.09,213.86,72.5443]
[1758682297459,65.3669,214.09,213.86,72.5443]
[1758682297665,100.5,214.08,213.86,72.5443]
[1758682297962,4.2025,214.07,213.87,65.4319]
[1758682298259,146.66,214.06,213.86,72.5464]
[1758682298461,65.3575,214.12,213.86,72.5464]
[1758682298462,65.3386,214.19,213.9,65.4244]
[1758682298657,65.3492,214.15,213.93,7.11]
[1758682298857,146.64,214.14,213.93,7.11]
[1758682299460,65.3425,214.17,213.93,7.11]
[1758682299661,146.64,214.16,213.93,7.11]
[1758682299859,65.3601,214.12,213.93,7.11]
[1758682300058,65.383,214.04,213.86,7.11]
[1758682300253,4.2041,213.99,213.86,7.11]
[1758682300454,65.3732,214.07,213.86,7.11]
[1758682300658,65.3869,214.03,213.78,65.4613]
[1758682300861,65.3732,214.07,213.82,7.11]
[1758682300862,4.2044,213.98,213.82,7.11]
[1758682301062,146.44,213.97,213.82,7.11]
[1758682301365,65.3949,214.0,213.75,7.11]
[1758682301366,4.2052,213.94,213.75,7.11]
[1758682301664,116.58,213.93,213.77,7.11]
[1758682301856,4.2047,213.96,213.77,7.11]
[1758682302054,65.3864,214.03,213.78,7.11]
[1758682302255,130.62,214.02,213.84,7.11]
[1758682302459,65.3491,214.15,213.9,65.4227]
[1758682302661,418.5929,214.14,213.91,7.11]
[1758682302861,146.44,214.13,213.91,7.11]
[1758682303061,71.689,214.05,213.8,65.4537]
[1758682303261,71.689,214.05,213.82,65.4493]
[1758682303457,65.3978,213.99,213.75,65.47]
[1758682303657,65.431,213.88,213.73,14.6098503]
[1758682303861,6.31,213.99,213.73,14.6098503]
[1758682303862,65.4044,213.97,213.73,14.6098503]
[1758682304160,110.32,213.98,213.75,65.4698]
[1758682304366,110.32,213.98,213.78,65.4612]
[1758682304561,110.32,213.98,213.77,65.4645]
[1758682304562,110.32,213.98,213.8,65.455]
[1758682304763,6.31,213.99,213.75,65.4693]
[1758682304963,6.31,213.99,213.69,353.04]
[1758682304964,6.31,213.97,213.76,7.11]
[1758682305164,65.4414,213.85,213.61,7.11]
[1758682305367,6.31,213.87,213.61,7.11]
[1758682305368,146.6,213.84,213.62,65.5087]
[1758682305564,65.4605,213.79,213.63,7.11]
[1758682305766,7.44,213.82,213.57,14.6098503]
[1758682305967,7.44,213.82,213.42,196.7102]
[1758682305968,7.44,213.82,213.7,65.4858]
[1758682306162,360.76,213.88,213.73,65.4764]
[1758682306361,353.32,213.88,213.85,65.4398]
[1758682306563,345.6428,213.88,213.87,4.2064]
[1758682306769,345.6428,213.88,213.8,196.3613]
[1758682306770,345.6428,213.88,213.72,65.4794]
[1758682306970,7.44,213.87,213.64,65.5044]
[1758682307171,7.44,213.82,213.58,65.5224]
[1758682307368,65.5148,213.61,213.53,161.7298503]
[1758682307669,135.2707,213.56,213.53,7.5197503]
[1758682307868,65.4662,213.77,213.53,0.81489287]
[1758682308070,7.44,213.85,213.69,65.4862]
[1758682308267,7.44,213.85,213.73,65.4766]
[1758682308470,7.44,213.85,213.7,65.4856]
[1758682308471,18.73,213.83,213.7,65.4856]
[1758682308666,7.44,213.85,213.71,69.6903]
[1758682308866,18.73,213.79,213.73,65.4758]
[1758682309063,18.73,213.79,213.7,65.4856]
[1758682309064,353.46,213.87,213.59,65.5194]
[1758682309367,18.73,213.75,213.7,65.4858]
[1758682309567,148.44,213.8,213.66,65.4983]
[1758682309867,7.44,213.79,213.61,65.5135]
[1758682310072,148.36,213.78,213.61,65.5121]
[1758682310370,148.36,213.78,213.57,65.5232]
[1758682310371,18.73,213.65,213.59,69.7308]
[1758682310562,7.44,213.72,213.59,69.7308]
[1758682310563,7.44,213.72,213.66,65.4981]
[1758682310868,7.44,213.8,213.66,65.4981]
[1758682311068,36.84,213.81,213.61,65.5107]
[1758682311271,7.44,213.86,213.72,4.2093]
[1758682311472,7.44,213.86,213.68,65.4905]
[1758682311671,7.44,213.86,213.74,65.4721]
[1758682311875,7.44,213.86,213.76,4.2086]
[1758682312172,7.44,213.86,213.73,65.4767]
[1758682312173,353.56,214.08,213.94,65.4125]
[1758682312369,7.44,214.07,213.99,65.3954]
[1758682312574,7.44,214.07,213.97,65.4027]
[1758682312575,148.86,214.06,213.97,65.4027]
[1758682312772,7.44,214.05,213.83,65.4463]
[1758682312973,7.44,213.96,213.82,65.4489]
[1758682313167,7.44,213.99,213.79,65.4564]
[1758682313369,65.4112,213.95,213.76,14.6098503]
[1758682313565,65.4162,213.93,213.76,14.6098503]
[1758682313767,65.4195,213.92,213.73,148.96]
[1758682313967,7.41,213.94,213.62,419.0689]
[1758682313968,7.41,214.01,213.76,14.6098503]
[1758682314168,7.41,214.01,213.62,353.56]
[1758682314169,11.5809,213.86,213.7,77.0431]
[1758682314367,65.4066,213.97,213.7,11.56]
[1758682314575,69.6151,213.95,213.7,11.56]
[1758682314880,7.41,213.97,213.71,65.4826]
[1758682315074,11.5809,213.83,213.71,65.4822]
[1758682315273,7.41,213.91,213.81,65.4523]
[1758682315777,65.3553,214.13,213.81,65.4523]
[1758682315778,7.41,213.98,213.81,65.4523]
[1758682316071,7.41,213.98,213.72,149.38]
[1758682316272,3.9255,213.86,213.72,149.38]
[1758682316472,65.3956,214.0,213.65,65.5009]
[1758682316473,3.9255,213.8,213.65,65.5009]
[1758682316866,7.41,213.88,213.66,65.4983]
[1758682317067,7.41,213.88,213.62,353.56]
[1758682317489,7.41,213.88,213.62,568.7295]
[1758682317672,3.9255,213.78,213.63,65.5073]
[1758682317975,3.9255,213.78,213.66,4.2106]
[1758682318178,7.41,213.88,213.66,4.2106]
[1758682318371,3.9255,213.78,213.66,4.2106]
[1758682318680,3.9255,213.76,213.65,65.5005]
[1758682318876,3.9255,213.76,213.63,65.5066]
[1758682319077,7.41,213.87,213.65,4.2106]
[1758682319078,11.6164,213.87,213.65,4.2106]
[1758682319274,7.41,213.81,213.6,215.0561]
[1758682319480,149.48,213.8,213.61,65.5133]
[1758682319673,7.41,213.81,213.62,65.5094]
[1758682319877,3.9255,213.77,213.6,149.54]
[1758682320376,65.4742,213.74,213.55,14.6098503]
[1758682320579,69.6931,213.71,213.55,14.6098503]
[1758682320784,69.6931,213.71,213.41,65.5745]
[1758682320785,72.8849,213.74,213.48,14.6098503]
[1758682321076,3.9255,213.64,213.49,69.7633]
[1758682321382,3.9255,213.65,213.54,65.5339]
[1758682321576,3.9255,213.65,213.56,65.5279]
[1758682321773,7.41,213.74,213.51,214.7834]
[1758682321976,72.8763,213.77,213.54,65.5332]
[1758682322274,69.6899,213.72,213.5,65.5473]
[1758682322482,3.9255,213.63,213.49,65.5479]
[1758682322880,3.9255,213.63,213.53,65.5384]
[1758682323084,149.4,213.72,213.57,65.5255]
[1758682323276,7.41,213.73,213.53,65.5384]
[1758682323583,156.71,213.8,213.61,65.5129]
[1758682323786,156.71,213.8,213.63,65.5074]
[1758682324083,7.41,213.88,213.66,65.4975]
[1758682324287,65.4438,213.84,213.62,163.8698503]
[1758682324579,7.41,213.85,213.69,65.4889]
[1758682324580,3.9255,213.78,213.69,65.4889]
[1758682324787,3.9255,213.82,213.72,65.4791]
[1758682324972,3.9255,213.82,213.7,65.4861]
[1758682324973,3.9255,213.84,213.76,69.6761]
[1758682325176,353.58,213.91,213.7,65.4858]
[1758682325375,3.9255,213.82,213.73,65.4769]
[1758682325579,3.9255,213.82,213.75,4.2087]
[1758682325779,353.58,213.91,213.75,65.4705]
[1758682325986,3.9255,213.86,213.76,65.4676]
[1758682326183,7.41,213.92,213.8,65.4552]
[1758682326382,149.18,213.96,213.81,65.4524]
[1758682326587,3.9255,213.89,213.79,65.4565]
[1758682326983,65.4112,213.95,213.72,65.4783]
[1758682327182,7.41,213.89,213.69,65.4873]
[1758682327385,7.41,213.89,213.79,65.4587]
[1758682327587,7.41,213.96,213.79,65.4587]
[1758682327788,3.9255,213.86,213.79,65.4587]
[1758682327988,7.41,213.89,213.72,65.4799]
[1758682328182,149.0,213.97,213.78,65.4617]
[1758682328383,3.9255,213.86,213.8,4.2078]
[1758682328590,7.41,213.96,213.81,65.4525]
[1758682328785,3.9255,213.9,213.83,65.4456]
[1758682328980,3.9255,213.91,213.83,4.2071]
[1758682329187,3.9255,213.91,213.78,65.4617]
[1758682329380,7.41,213.96,213.85,65.4399]
[1758682329381,3.9255,213.89,213.85,65.4399]
[1758682329587,7.41,213.96,213.82,65.4493]
[1758682329588,3.9255,213.91,213.86,4.2065]
[1758682329888,3.9255,213.91,213.77,65.4646]
[1758682330186,65.3865,214.03,213.78,65.4601]
[1758682330388,65.4099,213.95,213.75,65.4706]
[1758682330584,4.2054,213.93,213.76,4.2085]
[1758682330784,7.41,213.92,213.76,4.2085]
[1758682331094,3.9255,213.85,213.76,4.2085]
[1758682331596,3.9255,213.84,213.76,4.2085]
[1758682331984,153.9508,213.95,213.65,65.5003]
[1758682331985,65.4314,213.88,213.65,65.5003]
[1758682332181,88.54,213.95,213.65,65.5003]
[1758682332182,7.41,213.87,213.74,65.4736]
[1758682332492,7.41,213.94,213.79,65.4586]
[1758682332688,3.9255,213.87,213.74,65.4738]
[1758682332993,7.41,213.94,213.79,65.4583]
[1758682333192,4.2056,213.92,213.75,4.2087]
[1758682333390,3.9255,213.84,213.75,65.4707]
[1758682333590,4.2056,213.92,213.7,65.4854]
[1758682333591,7.41,213.88,213.7,65.4854]
[1758682333792,4.2068,213.86,213.71,4.2095]
[1758682333991,3.9255,213.78,213.71,4.2095]
[1758682334296,7.41,213.83,213.68,4.2101]
[1758682334489,3.9255,213.75,213.69,65.489]
[1758682334687,3.9255,213.75,213.65,65.5008]
[1758682334889,7.41,213.83,213.66,65.4969]
[1758682335189,3.9255,213.75,213.66,65.4969]
[1758682335390,3.9255,213.75,213.69,4.2099]
[1758682335993,3.9255,213.72,213.61,65.5131]
[1758682336194,3.9255,213.71,213.62,65.5105]
[1758682336389,3.9255,213.72,213.65,65.501]
[1758682336590,3.9255,213.71,213.65,65.501]
[1758682336786,3.9255,213.71,213.62,65.5102]
[1758682336993,7.41,213.77,213.6,65.5158]
[1758682337194,7.41,213.77,213.58,65.523]
[1758682337400,7.41,213.77,213.6,65.5141]
[1758682337697,3.9255,213.7,213.6,65.5141]
[1758682337994,7.41,213.77,213.63,4.2111]
[1758682337995,3.9255,213.69,213.63,4.2111]
[1758682338394,7.41,213.77,213.63,4.2111]
[1758682338591,3.9255,213.69,213.63,4.2111]
[1758682339083,7.41,213.77,213.63,4.2111]
[1758682339294,3.9255,213.69,213.63,4.2111]
[1758682339596,3.9255,213.69,213.65,4.2107]
[1758682339790,7.41,213.71,213.57,65.5231]
[1758682339989,7.41,213.71,213.58,4.212]
[1758682340191,7.41,213.71,213.53,65.5374]
[1758682340397,3.9255,213.62,213.57,65.5253]
[1758682340789,7.41,213.7,213.47,65.5563]
[1758682340994,3.9255,213.56,213.47,65.5563]
[1758682341393,3.9255,213.55,213.47,65.5563]
[1758682341589,3.9255,213.55,213.5,4.2136]
[1758682343009,3.9255,213.54,213.5,4.2136]
[1758682343209,7.41,213.58,213.43,65.5672]
[1758682343409,3.9255,213.51,213.45,65.5627]
[1758682343800,7.41,213.58,213.45,65.5627]
[1758682344007,3.9255,213.51,213.45,65.5627]
[1758682344206,3.9255,213.53,213.48,65.5522]
[1758682344406,3.9255,213.57,213.51,65.5432]
[1758682344708,4.2111,213.64,213.49,4.2138]
[1758682344914,65.49,213.69,213.47,65.5567]
[1758682344915,7.56,213.63,213.5,65.5473]
[1758682345115,7.56,213.63,213.51,65.5443]
[1758682345313,3.9255,213.57,213.52,65.5407]
[1758682345808,3.9255,213.57,213.47,65.5567]
[1758682346011,7.56,213.69,213.52,65.5397]
[1758682346216,7.56,213.69,213.6,65.5153]
[1758682346414,7.56,213.69,213.55,65.5303]
[1758682346415,3.9255,213.65,213.55,65.5303]
[1758682346607,7.56,213.69,213.55,4.2125]
[1758682346912,3.9255,213.64,213.57,65.5228]
[1758682347112,3.9255,213.64,213.55,65.5303]
[1758682347316,7.56,213.69,213.58,4.2119]
[1758682347511,7.56,213.69,213.53,65.5359]
[1758682347710,3.9255,213.63,213.55,4.2126]
[1758682347925,7.56,213.69,213.57,65.5233]
[1758682347926,3.9255,213.64,213.57,65.5233]
[1758682348105,3.9255,213.65,213.54,65.5313]
[1758682348516,3.9255,213.64,213.54,65.5313]
[1758682348710,3.9255,213.64,213.56,4.2124]
[1758682348907,3.9255,213.64,213.49,65.5487]
[1758682348908,7.56,213.69,213.5,65.5452]
[1758682349111,3.9255,213.61,213.51,145.72]
[1758682349416,3.9255,213.59,213.48,65.552]
[1758682349623,3.9255,213.59,213.49,65.549]
[1758682349916,3.9255,213.59,213.5,65.5458]
[1758682350121,3.9255,213.57,213.5,65.5458]
[1758682350420,3.9255,213.6,213.54,65.5317]
[1758682350721,7.56,213.64,213.5,65.5458]
[1758682350913,7.56,213.64,213.47,145.36]
[1758682350914,3.9255,213.56,213.47,145.36]
[1758682351112,3.9255,213.54,213.44,145.34]
[1758682351413,7.56,213.68,213.49,65.5477]
[1758682351623,3.9255,213.56,213.45,65.561]
[1758682351916,7.56,213.66,213.5,65.5456]
[1758682352120,3.9255,213.59,213.54,4.2127]
[1758682352420,7.56,213.66,213.51,65.5409]
[1758682352615,7.56,213.66,213.53,4.2129]
[1758682353014,73.0576,213.66,213.46,65.5564]
[1758682353208,73.0576,213.66,213.44,65.5629]
[1758682353209,3.9255,213.56,213.51,65.5422]
[1758682353413,7.56,213.66,213.55,65.53]
[1758682353719,3.9255,213.58,213.53,65.5361]
[1758682353915,7.56,213.66,213.58,65.5212]
[1758682354420,7.56,213.66,213.56,65.5268]
[1758682354619,7.56,213.66,213.55,65.5295]
[1758682354816,7.56,213.66,213.56,65.5271]
[1758682355308,7.56,213.66,213.59,4.2118]
[1758682355614,7.56,213.74,213.59,65.5177]
[1758682355807,7.56,213.74,213.61,4.2113]
[1758682356011,7.56,213.74,213.56,65.5271]
[1758682356418,7.56,213.74,213.6,65.5145]
[1758682356612,7.56,213.74,213.58,65.5201]
[1758682356814,7.56,213.7,213.51,65.5416]
[1758682357015,7.56,213.78,213.62,4.2111]
[1758682357414,7.56,213.78,213.64,65.5018]
[1758682357613,7.56,213.78,213.68,4.2099]
[1758682357817,7.56,213.78,213.62,65.5079]
[1758682358014,7.56,213.78,213.66,4.2104]
[1758682358220,7.56,213.78,213.62,65.5092]
[1758682358413,7.56,213.78,213.63,65.5054]
[1758682359418,7.56,213.78,213.66,65.4963]
[1758682359627,7.56,213.78,213.62,3.21204155]
[1758682360024,11.7682,213.78,213.64,4.2107]
[1758682360824,11.7682,213.78,213.66,4.2103]
[1758682361018,11.7682,213.78,213.62,65.5062]
[1758682361221,11.7682,213.78,213.61,209.7907]
[1758682361222,11.7682,213.78,213.65,4.2105]
[1758682361618,11.7682,213.78,213.61,65.5107]
[1758682361825,4.2086,213.76,213.62,4.2112]
[1758682362020,7.56,213.74,213.56,65.5261]
[1758682362332,7.56,213.74,213.62,4.2111]
[1758682362625,7.56,213.74,213.63,65.5044]
[1758682362827,7.56,213.82,213.65,65.4994]
[1758682363417,65.4508,213.81,213.61,65.5114]
[1758682363626,7.56,213.82,213.65,65.499]
[1758682363818,7.56,213.82,213.66,65.4954]
[1758682364025,7.56,213.82,213.71,65.4818]
[1758682364232,7.56,213.88,213.74,65.4724]
[1758682364418,7.56,213.88,213.77,4.2083]
[1758682364627,7.56,213.88,213.78,65.4601]
[1758682365126,7.56,213.88,213.72,3.21204155]
[1758682365127,10.77204155,213.93,213.72,68.68764155]
[1758682365329,10.77204155,213.93,213.73,65.4741]
[1758682365930,65.4174,213.92,213.72,3.21204155]
[1758682366130,10.77204155,213.93,213.74,65.4707]
[1758682366622,10.77204155,213.93,213.78,4.208]
[1758682366821,7.56,213.93,213.78,65.4598]
[1758682367026,7.56,213.93,213.72,65.4768]
[1758682367218,7.56,213.93,213.73,208.4551]
[1758682367633,4.2056,213.91,213.76,4.2084]
[1758682367821,7.56,213.93,213.76,4.2084]
[1758682368224,7.56,213.89,213.73,4.209]
[1758682368626,7.56,213.89,213.72,65.4757]
[1758682368937,65.4294,213.88,213.7,142.86]
[1758682369126,65.4294,213.88,213.69,3.21204155]
[1758682369530,4.2065,213.87,213.71,4.2093]
[1758682369724,4.2065,213.87,213.7,65.482]
[1758682369924,65.4359,213.86,213.68,353.8]
[1758682370135,7.56,213.82,213.67,65.4933]
[1758682370334,7.56,213.82,213.61,105.24594177]
[1758682370532,7.56,213.82,213.67,4.2101]
[1758682371023,7.56,213.82,213.69,4.2098]
[1758682371424,7.56,213.82,213.64,142.44]
[1758682371625,7.56,213.82,213.67,65.4927]
[1758682371823,7.56,213.9,213.73,65.475]
[1758682372024,7.56,213.9,213.72,4.2091]
[1758682372025,4.2063,213.88,213.72,4.2091]
[1758682372230,7.56,213.86,213.66,65.4958]
[1758682372433,7.56,213.86,213.69,65.4858]
[1758682372632,7.56,213.86,213.72,4.2092]
[1758682372935,7.56,213.86,213.72,65.4778]
[1758682373229,7.56,213.86,213.73,65.4749]
[1758682373824,7.56,213.86,213.79,65.4551]
[1758682374031,7.8,213.92,213.76,65.4631]
[1758682374429,7.8,213.92,213.8,4.2076]
[1758682374826,7.8,213.92,213.77,141.8]
[1758682375029,73.2174,213.92,213.75,3.21204155]
[1758682375333,65.4199,213.91,213.72,141.72]
[1758682375532,12.0064,213.87,213.71,3.21204155]
[1758682376225,12.0064,213.87,213.73,4.209]
[1758682377026,12.0064,213.87,213.72,65.4763]
[1758682377027,7.8,213.87,213.72,65.4763]
[1758682377225,7.8,213.87,213.71,3.21204155]
[1758682378534,12.0064,213.87,213.71,3.21204155]
[1758682378836,7.8,213.87,213.71,3.21204155]
[1758682379633,7.8,213.87,213.73,4.209]
[1758682380037,7.8,213.87,213.72,65.4772]
[1758682380237,7.8,213.87,213.7,65.482]
[1758682380429,206.8723,213.94,213.79,65.4557]
[1758682380430,7.8,213.94,213.79,65.4557]
[1758682380728,7.8,213.94,213.84,4.2068]
[1758682381133,353.86,213.99,213.84,65.4407]
[1758682381332,7.8,214.0,213.88,4.206]
[1758682381635,140.8,214.05,213.9,65.4224]
[1758682381831,12.0027,214.06,213.89,4.2058]
[1758682382137,7.8,214.06,213.89,144.64473003]
[1758682382326,7.8,214.06,213.88,3.21204155]
[1758682382630,7.8,214.06,213.83,65.4438]
[1758682382631,7.8,214.04,213.85,65.4372]
[1758682382836,7.8,214.04,213.87,65.4314]
[1758682383030,65.3869,214.02,213.83,3.21204155]
[1758682383246,65.3831,214.03,213.83,3.21204155]
[1758682383431,7.8,214.04,213.9,4.2056]
[1758682383635,7.8,214.04,213.9,65.4222]
[1758682383930,7.8,214.04,213.94,4.2048]
[1758682384131,4.2019,214.1,213.95,65.4067]
[1758682384132,7.8,214.1,213.95,65.4067]
[1758682384340,7.8,214.1,213.94,65.4102]
[1758682384635,4.202,214.09,213.96,4.2044]
[1758682384936,7.8,214.1,213.94,65.4088]
[1758682385135,12.002,214.1,213.95,4.2046]
[1758682385535,73.1782,214.05,213.84,187.97184155]
[1758682385838,77.3811,214.05,213.86,4.2064]
[1758682386035,65.3922,214.0,213.81,143.49204155]
[1758682386225,7.8,214.01,213.81,143.49204155]
[1758682386431,7.8,214.01,213.81,3.21204155]
[1758682386637,4.2041,213.99,213.83,4.207]
[1758682386931,65.4029,213.97,213.75,68.68044155]
[1758682387136,12.0042,213.98,213.81,4.2073]
[1758682387435,7.8,213.98,213.83,65.4438]
[1758682387832,7.8,213.98,213.8,3.21204155]
[1758682388034,7.8,213.98,213.8,140.1]
[1758682388227,7.8,213.98,213.78,65.459]
[1758682388228,7.8,213.98,213.79,3.21204155]
[1758682388428,7.8,213.98,213.8,140.04]
[1758682388841,72.6681,213.95,213.76,139.92]
[1758682389036,65.4108,213.94,213.74,3.21204155]
[1758682389236,7.26,213.91,213.74,3.21204155]
[1758682389439,1.16937264,213.9,213.71,139.88]
[1758682389741,1.16937264,213.89,213.72,65.4773]
[1758682389941,7.26,213.91,213.77,4.2082]
[1758682390441,7.26,213.91,213.76,65.4639]
[1758682390642,7.26,213.91,213.74,68.68304155]
[1758682390844,7.26,213.91,213.76,65.4652]
[1758682391042,7.26,213.91,213.78,4.2079]
[1758682391940,7.26,213.91,213.74,68.68304155]
[1758682391941,7.26,213.91,213.74,4.2087]
[1758682392143,1.16938548,213.9,213.74,4.2087]
[1758682392343,7.26,213.87,213.71,3.21204155]
[1758682392543,7.26,213.87,213.71,68.69264155]
[1758682392940,65.4376,213.86,213.68,3.21204155]
[1758682393144,1.16961819,213.85,213.68,142.71204155]
[1758682393344,65.4376,213.86,213.68,142.71204155]
[1758682393646,4.2073,213.83,213.68,143.71]
[1758682393846,72.7022,213.84,213.66,139.34]
[1758682394044,7.26,213.84,213.66,139.34]
[1758682394343,1.16968845,213.83,213.69,65.4874]
[1758682394638,7.26,213.9,213.73,65.4753]
[1758682394842,65.4155,213.93,213.68,3.21204155]
[1758682394843,7.26,213.87,213.68,142.43204155]